Cogmind - Beta 17 @@@ ROGUE MODE // 2026.08.23 @ 20:43:08 Player: bm-y65 Result: Self-destructed Performance ------------- Evolutions (5) 2500 Regions Visited (18) 3600 Robots Destroyed (253) 1265 Value Destroyed (7253) 7253 Prototype IDs (38) 760 Alien Tech Used (0) 0 Bonus (487) 487 TOTAL SCORE: 15865 Bonus ------- High Alert Combat Kills 361 Follower Combat Kills 56 Met Data Miner 300 Friendly Fire -230 Cogmind --------- Core Integrity 827/1000 Matter 158/300 Energy 105/150 System Corruption 21% Temperature Cool (39) Movement Hovering (51) Location -5/Factory Parts ------- > --- POWER (2) -------- Light Angular Momentum Engine > --- PROPULSION (6) --- Aerolev Unit Combat Airjet Combat Airjet Gyrokinetic Inverter Cooled Gravmag System > --- UTILITY (7) ------ Large Storage Unit Enhanced Optical Array Advanced Sensor Array Improved Signal Interpreter Weapon Mount Core Analyzer Hacking Suite > --- WEAPON (2) ------- Long-range Missile Launcher > --- INVENTORY (15) --- Light Angular Momentum Engine Light Angular Momentum Engine Linear Gravjet Improved Matter Compressor (7) Improved Sensor Array Improved Weapon Cycler Advanced Transmission Jammer Layered Medium Armor Plating Long-range Tractor Beam Cooled Particle Cannon Hypervelocity Coil Gun Hypervelocity Coil Gun Multitool Makeshift Sword Peak State ------------ > --- POWER ------------ Light Deuterium Engine Light Angular Momentum Engine > --- PROPULSION ------- Aerolev Unit Aerolev Unit Combat Airjet Combat Airjet Gyrokinetic Inverter Cooled Gravmag System > --- UTILITY ---------- Large Storage Unit Enhanced Optical Array Improved Signal Interpreter Weapon Mount Core Analyzer Advanced Transmission Jammer Hacking Suite > --- WEAPON ----------- Hypervelocity Mass Driver Hypervelocity Mass Driver > --- INVENTORY -------- Light Angular Momentum Engine Light Angular Momentum Engine Improved Matter Compressor Improved Sensor Array Advanced Sensor Array Improved Weapon Cycler Layered Medium Armor Plating Authchip [Propulsion] Long-range Tractor Beam Cooled Particle Cannon Hypervelocity Coil Gun Hypervelocity Coil Gun Long-range Missile Launcher Multitool Makeshift Sword [Rating: 88] Favorites ----------- Power Cooled Ion Engine Engine Cooled Ion Engine Power Core Micro Nuclear Core Reactor Cold Fusion Reactor Propulsion Aerolev Unit Treads Light Treads Wheel Compact Wheel Hover Unit Aerolev Unit Flight Unit Improved Flight Unit Utility Hacking Suite Device Improved Sensor Array Storage High-capacity Storage Unit Processor Improved Signal Interpreter Hackware Hacking Suite Protection Hardened Light Armor Plating Weapon Assault Rifle Energy Gun Advanced Beam Rifle Energy Cannon Advanced Beam Cannon Ballistic Gun Assault Rifle Ballistic Cannon Hypervelocity Mass Driver Launcher Grenade Launcher Special Weapon Multitool Impact Weapon Great Maul Slashing Weapon Makeshift Sword Piercing Weapon CR-A16's Pointy Stick Build | -11 -10 -10 -9 -8 -8 -7 -7 -7 -7 -6 -6 -6 -6 -6 -5 -5 -5 -5 ------- Run | Yrd Mat Min Mat Mat Sto Fac Low Low Zio Pro Fac Low Low Dat Pro Fac Was Fac Slots Evolved 10 | . . . 2 2 . 2 . . . . 2 . . . . 2 . . Power 1 | . . . . . . 1 . . . . . . . . . . . . Propulsion 4 | . . . 1 1 . . . . . . 1 . . . . 1 . . Utility 5 | . . . 1 1 . 1 . . . . 1 . . . . 1 . . Weapon . | . . . . . . . . . . . . . . . . . . . Parts Attached 180 | 9 8 2 26 38 9 29 1 . 5 . 22 . 1 . 8 10 3 9 Power 19 | 1 1 . 2 1 2 3 . . . . 3 . . . 2 2 . 2 Engine 12 | 1 1 . 2 1 2 1 . . . . . . . . . 2 . 2 Core 6 | . . . . . . 2 . . . . 2 . . . 2 . . . Reactor 1 | . . . . . . . . . . . 1 . . . . . . . Propulsion 54 | 4 2 . 10 17 3 7 . . 1 . 5 . . . 2 1 . 2 Treads 25 | 1 1 . 8 13 2 . . . . . . . . . . . . . Leg . | . . . . . . . . . . . . . . . . . . . Wheel 8 | 3 1 . 1 3 . . . . . . . . . . . . . . Hover 19 | . . . . 1 . 7 . . 1 . 5 . . . 2 1 . 2 Flight 2 | . . . 1 . 1 . . . . . . . . . . . . . Utility 58 | 2 2 1 6 9 1 11 . . 1 . 8 . 1 . 3 7 3 3 Device 27 | 1 1 1 2 5 1 3 . . 1 . 1 . 1 . 2 4 2 2 Storage 5 | 1 1 . . 1 . 1 . . . . . . . . . 1 . . Processor 5 | . . . . 1 . . . . . . 2 . . . . 1 1 . Hackware 13 | . . . . . . 6 . . . . 5 . . . . 1 . 1 Protection 8 | . . . 4 2 . 1 . . . . . . . . 1 . . . Artifact . | . . . . . . . . . . . . . . . . . . . Weapon 49 | 2 3 1 8 11 3 8 1 . 3 . 6 . . . 1 . . 2 Energy Gun 14 | . 2 . 3 6 1 2 . . . . . . . . . . . . Energy Cannon 7 | . . . 4 . . . . . . . 2 . . . . . . 1 Ballistic Gun 7 | 2 1 . 1 2 1 . . . . . . . . . . . . . Ballistic Cannon 10 | . . . . 2 1 4 . . . . 3 . . . . . . . Launcher 5 | . . 1 . 1 . . . . 2 . . . . . . . . 1 Special Weapon 1 | . . . . . . . . . . . 1 . . . . . . . Impact Weapon 2 | . . . . . . 2 . . . . . . . . . . . . Slashing Weapon 2 | . . . . . . . 1 . . . . . . . 1 . . . Piercing Weapon 1 | . . . . . . . . . 1 . . . . . . . . . Special Melee Weapon . | . . . . . . . . . . . . . . . . . . . Unidentified Prototypes 24 | . . 1 4 4 3 1 . . 2 . 5 . . . . 2 1 1 Corrupted Parts 1 | . . . . . . . . . . . . . . . . . . 1 System Corruption 8 | . . . . . . . . . . . . . . . . . . 8 Parts Lost 42 | . 4 . 4 8 1 5 . . . . 2 . . . 11 3 . 4 Power 6 | . 1 . . . . 1 . . . . . . . . 2 2 . . Propulsion 13 | . 2 . 1 2 . 3 . . . . . . . . 3 . . 2 Utility 13 | . . . 2 3 1 1 . . . . 2 . . . 3 1 . . Weapon 10 | . 1 . 1 3 . . . . . . . . . . 3 . . 2 Highest Loss Streak 7 | . 2 . 3 5 1 2 . . . . 1 . . . 7 2 . 3 To Critical Strikes . | . . . . . . . . . . . . . . . . . . . Average Backups 16 | 4 17 19 19 19 19 14 14 14 15 15 14 14 15 15 8 13 14 14 Power 1 | . 2 2 1 1 1 1 1 1 1 1 1 1 1 1 . . 1 1 Propulsion 4 | 3 4 4 7 8 9 3 3 3 2 2 1 3 3 3 . . . . Utility 4 | . 5 6 4 3 4 5 5 5 5 6 5 4 5 5 3 7 7 6 Weapon 5 | . 4 6 5 5 5 4 4 4 5 5 5 5 4 5 3 4 5 5 Tool/Special . | . . . . . . . . . . . . . . . . . . . Unused Backups 66 | . 13 2 14 6 10 3 1 . 1 . 4 . 1 . . 3 . 8 Power 13 | . 3 2 2 . 2 1 . . . . 2 . . . . 1 . . Propulsion 15 | . 2 . 1 3 8 1 . . . . . . . . . . . . Utility 19 | . 3 . 3 . . . 1 . 1 . 2 . 1 . . 2 . 6 Weapon 18 | . 5 . 8 2 . 1 . . . . . . . . . . . 2 Tool/Special 1 | . . . . 1 . . . . . . . . . . . . . . Average Slot Usage (%) 95 | . 99 100 99 99 98 85 84 85 84 84 95 100 100 100 91 92 94 91 Engine 6 | . 13 14 11 9 9 . . . . . . . . . . 1 5 5 Core 3 | . . . . . . 6 7 7 7 7 12 13 13 13 9 8 . . Treads 11 | . 14 14 21 25 26 1 . . . . . . . . . . . . Wheel 6 | . 14 14 10 10 9 . . . . . . . . . . . . . Hover 14 | . . . . . . 28 30 30 30 30 32 33 33 33 31 32 35 32 Device 12 | . 14 14 19 17 16 7 7 7 7 7 6 6 6 6 10 11 11 10 Storage 8 | . 14 14 11 9 9 7 7 7 7 7 6 6 6 6 6 5 5 5 Processor 6 | . . . . 3 9 7 7 7 7 7 14 13 13 13 13 12 17 17 Hackware 4 | . . . . . . 12 15 15 15 15 11 13 13 13 7 5 5 5 Protection 1 | . . . 2 5 . . . . . . . . . . . . . . Energy Gun 1 | . 1 . . 11 . . . . . . . . . . . . . . Energy Cannon 3 | . . . 16 5 . . . . . . . . . . . . . . Ballistic Gun 5 | . 26 27 5 . . . . . . . . . . . . . . . Ballistic Cannon 3 | . . . . . 17 1 . 1 . . 3 6 6 6 8 7 11 8 Peak Build Rating 88 | 7 11 15 22 41 41 51 50 50 48 43 72 70 70 70 71 81 83 88 Average Rating 38 | 5 8 9 18 31 38 41 43 44 43 43 61 69 69 70 62 75 81 79 On Entrance 44 | . 7 9 9 21 41 40 44 43 43 43 43 72 70 70 70 67 77 82 Avg Prop Armor Cover (%) 16 | 9 11 12 18 19 19 22 . . . . . . . . . . . . Naked Turns . | . . . . . . . . . . . . . . . . . . . Heaviest Build 64 | 15 51 51 64 63 62 62 30 41 32 30 58 49 49 49 62 62 55 58 Greatest Support 84 | 20 20 16 40 84 84 41 32 32 32 32 52 52 52 52 52 63 63 63 Greatest Overweight (x) 19 | . 3 3 5 5 5 5 . 1 . . 1 . . . 1 19 . 1 Average Overweight (x) . | . 2 3 3 2 4 . . . . . . . . . . . . . Largest Inventory Capacity 20 | 8 20 20 20 20 20 20 15 15 15 15 15 15 15 15 15 15 15 15 Average Capacity 17 | 7 18 20 20 20 20 15 15 15 15 15 15 15 15 15 15 15 15 15 Most Carried 20 | 8 20 20 20 20 20 20 15 15 15 15 15 15 15 15 15 15 15 15 Average Carried 16 | 5 17 19 19 19 19 14 14 14 14 15 14 14 14 15 8 13 14 14 Final Capacity 20 | 8 20 20 20 20 20 15 15 15 15 15 15 15 15 15 15 15 15 15 Final Carried 20 | 8 19 20 20 20 20 15 15 15 15 15 14 15 15 15 8 15 15 14 Class Distribution -------------------- 32% | Scavenger-Mutant 22% | Mutant 16% | Hacker-Mutant 12% | Machinist-Scout 7% | Hacker-Scout Dominant Class ---------------- Mutant | -10/Materials Scavenger-Mutant | -10/Mines Scavenger-Mutant | -9/Materials Scavenger-Mutant | -8/Materials Mutant | -8/Storage Hacker-Mutant | -7/Factory Hacker-Mutant | -7/Lower Caves Hacker-Mutant | -7/Lower Caves Hacker-Mutant | -7/Zion Hacker-Mutant | -6/Proximity Caves Hacker-Scout | -6/Factory Hacker-Scout | -6/Lower Caves Hacker-Scout | -6/Lower Caves Hacker-Scout | -6/Data Miner Machinist-Skirmisher | -5/Proximity Caves Machinist-Scout | -5/Factory Machinist-Scout | -5/Waste Machinist-Scout | -5/Factory Resources | -11 -10 -10 -9 -8 -8 -7 -7 -7 -7 -6 -6 -6 -6 -6 -5 -5 -5 -5 ----------- Run | Yrd Mat Min Mat Mat Sto Fac Low Low Zio Pro Fac Low Low Dat Pro Fac Was Fac Matter Collected 8443 | 336 664 85 574 610 905 742 59 82 45 35 1279 125 301 . 745 983 362 511 Remotely . | . . . . . . . . . . . . . . . . . . . Salvage Created 11574 | 118 888 54 1665 2443 849 939 65 42 . . 1066 . 254 . 527 748 1400 516 Parts 500 | 13 50 12 92 116 48 26 2 3 . . 41 . 2 . 14 29 22 30 Haulers Intercepted 24 | . 2 . 5 4 4 3 . . . . 4 . . . . 1 . 1 Recyclers Shooed 9 | . 2 . 1 2 1 . . . . . . . . . . 2 . 1 Parts Field Recycled . | . . . . . . . . . . . . . . . . . . . Retrieved Matter . | . . . . . . . . . . . . . . . . . . . Parts Self-Destructed 14 | . . . . . . . 2 1 . . . . . . 11 . . . Prevented 1 | . . . . . . . . 1 . . . . . . . . . . Parts Restored . | . . . . . . . . . . . . . . . . . . . Kills | -11 -10 -10 -9 -8 -8 -7 -7 -7 -7 -6 -6 -6 -6 -6 -5 -5 -5 -5 ------- Run | Yrd Mat Min Mat Mat Sto Fac Low Low Zio Pro Fac Low Low Dat Pro Fac Was Fac Combat Hostiles Destroyed 140 | . 11 3 28 38 14 6 1 1 . . 11 . . . 8 5 5 9 Melee 4 | . . . . . . 3 . . . . 1 . . . . . . . Guns 39 | . 11 . 4 24 . . . . . . . . . . . . . . Cannons 80 | . . . 22 6 13 3 1 1 . . 10 . . . 8 5 5 6 AOE 12 | . . 3 . 5 1 . . . . . . . . . . . . 3 Classes Destroyed 19 | 1 7 1 4 3 . 1 . 1 . . . . . . . . 1 . Worker 24 | . 3 2 3 . 2 7 . . . . 2 . . . . 4 . 1 Builder 14 | . . 1 1 2 3 5 . . . . . . . . . . . 2 Tunneler 5 | 5 . . . . . . . . . . . . . . . . . . Hauler 24 | . 2 . 5 4 4 3 . . . . 4 . . . . 1 . 1 Recycler 17 | . 3 . 1 4 4 2 . . . . 1 . . . . 2 . . Mechanic 1 | . . . 1 . . . . . . . . . . . . . . . Operator 10 | . 2 . 3 1 . 3 . . . . 1 . . . . . . . Watcher 17 | . 1 . 5 4 . 4 . . . . . . . . . 2 . 1 Swarmer 20 | . 3 3 8 3 . . . . . . . . . . . . . 3 Grunt 64 | . 8 . 10 20 6 . . . . . 4 . . . 5 5 . 6 Brawler 1 | . . . 1 . . . . . . . . . . . . . . . Duelist 2 | . . . 2 . . . . . . . . . . . . . . . Sentry 29 | . . . 7 8 7 2 1 . . . 3 . . . 1 . . . Specialist 4 | . . . . 4 . . . . . . . . . . . . . . Hunter 4 | . . . . 2 1 . . . . . 1 . . . . . . . Programmer 9 | . . . . . . 4 . . . . 3 . . . 2 . . . Heavy 1 | . . . . 1 . . . . . . . . . . . . . . Compactor 5 | . . . . . . . . . . . . . . . . . 5 . Enhanced Grunt 1 | . . . . . . . . . . . . . . . 1 . . . Packrat 3 | . . . . . . . . . . . . . 3 . . . . . Mutant 1 | . . . . . . . . 1 . . . . . . . . . . Best Kill Streak 7 | 4 4 4 6 7 4 6 1 1 . . 2 . . . 4 3 3 5 Combat Bots Only 6 | . 3 3 4 6 3 1 1 1 . . 2 . . . 4 2 3 3 Max Kills in Single Turn 3 | 1 2 2 2 3 3 1 1 1 . . 1 . 1 . 2 1 1 2 Gunslinging 1 | . . . . 1 . . . . . . . . . . . . . . Exploded 2 | . . 1 . 2 1 . . . . . . . . . . . . 2 Melee 1 | . . . . . . 1 . . . . 1 . . . . . . . Uniques/NPCs Destroyed . | . . . . . . . . . . . . . . . . . . . Combat | -11 -10 -10 -9 -8 -8 -7 -7 -7 -7 -6 -6 -6 -6 -6 -5 -5 -5 -5 -------- Run | Yrd Mat Min Mat Mat Sto Fac Low Low Zio Pro Fac Low Low Dat Pro Fac Was Fac Hostile Shots Fired 809 | . 62 13 101 203 69 88 9 . . 2 83 . . . 83 36 . 60 Missed 260 | . 15 5 25 70 17 36 9 . . . 28 . . . 23 16 . 16 Hits 549 | . 47 8 76 133 52 52 . . . 2 55 . . . 60 20 . 44 Melee 5 | . . . 5 . . . . . . . . . . . . . . . Projectile 544 | . 47 8 71 133 52 52 . . . 2 55 . . . 60 20 . 44 Critical Strikes 17 | . . . . 6 2 3 . . . . 2 . . . 2 2 . . Damage Taken 8674 | . 630 62 977 2248 873 704 . . . 26 696 . . . 1421 337 . 700 Core 1531 | . 121 . 43 256 96 158 . . . 12 114 . . . 558 80 . 93 Absorbed by Shields . | . . . . . . . . . . . . . . . . . . . Core Remaining (%) 61 | 100 . 51 89 . 36 . . . . 75 . . . . 20 . . . Volleys Fired 522 | 11 58 8 103 144 54 25 1 6 . . 31 . 1 . 22 26 10 22 Largest 2 | 2 2 2 2 2 2 2 1 1 . . 2 . 1 . 2 2 2 2 Hottest 136 | 40 70 40 136 136 80 112 56 56 . . 112 . 56 . 112 112 112 112 Shots Fired 983 | 22 116 11 206 278 104 28 1 6 . . 61 . 1 . 45 46 20 38 Gun 416 | 22 116 6 59 204 . 9 . . . . . . . . . . . . Cannon 555 | . . . 147 70 104 19 1 6 . . 61 . 1 . 45 46 20 35 Launcher 12 | . . 5 . 4 . . . . . . . . . . . . . 3 Special . | . . . . . . . . . . . . . . . . . . . Kinetic 527 | 22 109 6 52 5 104 19 1 6 . . 61 . 1 . 45 42 20 34 Thermal 419 | . 7 . 147 251 . 9 . . . . . . . . . 4 . 1 Explosive 12 | . . 5 . 4 . . . . . . . . . . . . . 3 Electromagnetic 25 | . . . 7 18 . . . . . . . . . . . . . . Robot Hit Streak 21 | 4 14 10 15 14 12 10 11 16 . . 21 . 1 . 7 7 7 6 Robot Miss Streak 10 | 2 3 2 3 5 4 1 . . . . 3 . . . 10 1 1 4 Penetration Max 2 | . . . . . . 1 . . . . 1 . . . 1 1 . 2 Secondary Targets 9 | . 1 . . 8 . . . . . . . . . . . . . . Max Gunslinging Chain 1 | . 1 . . 1 . . . . . . . . . . . . . . Shots Hit Robots 691 | 11 75 3 134 188 67 54 1 5 . . 51 . 3 . 28 39 13 19 Core Hits 310 | 5 34 7 55 85 33 15 1 2 . . 25 . 1 . 12 14 5 16 Critical Kills 53 | . . . 3 2 . 3 1 1 . . 11 . 1 . 9 9 5 8 Critical Parts Destroyed 63 | . 2 . . . . 11 . 1 . . 15 . . . 13 14 . 7 Critical Strikes 144 | . 2 . 3 17 5 15 1 2 . . 28 . 1 . 23 24 8 15 Burn 15 | . . . . 15 . . . . . . . . . . . . . . Meltdown 5 | . . . 3 2 . . . . . . . . . . . . . . Destroy 104 | . 2 . . . . 4 1 2 . . 26 . 1 . 22 23 8 15 Blast 6 | . . . . . 5 1 . . . . . . . . . . . . Smash 10 | . . . . . . 10 . . . . . . . . . . . . Sever 1 | . . . . . . . . . . . . . . . . 1 . . Impale 3 | . . . . . . . . . . . 2 . . . 1 . . . Melee Attacks 139 | . . . . . . 63 . 2 1 . 29 . 2 . 15 21 . 6 Impact 63 | . . . . . . 63 . . . . . . . . . . . . Slashing 29 | . . . . . . . . 2 . . . . . . . 21 . 6 Piercing 47 | . . . . . . . . . 1 . 29 . 2 . 15 . . . Sneak Attacks 29 | . . . . . . 15 . . . . 7 . 2 . . 5 . . Combat Hostiles . | . . . . . . . . . . . . . . . . . . . Follow-up Attacks . | . . . . . . . . . . . . . . . . . . . Damage Inflicted 18578 | 137 986 237 2609 4513 2154 3140 12 48 . . 1594 . 167 . 681 1039 253 1008 Guns 4904 | 137 978 34 505 3128 . 122 . . . . . . . . . . . . Cannons 7776 | . . . 2104 812 1978 304 12 48 . . 799 . 25 . 518 505 253 418 Explosions 1531 | . . 203 . 565 173 . . . . . . . . . . . . 590 Melee 4348 | . . . . . . 2714 . . . . 795 . 142 . 163 534 . . Ramming 19 | . 8 . . 8 3 . . . . . . . . . . . . . Kinetic 6462 | 137 927 34 392 112 1978 304 12 48 . . 799 . 25 . 518 505 253 418 Thermal 5789 | . 51 . 2104 3512 . 122 . . . . . . . . . . . . Explosive 1476 | . . 203 . 510 173 . . . . . . . . . . . . 590 Electromagnetic 484 | . . . 113 371 . . . . . . . . . . . . . . Impact 2714 | . . . . . . 2714 . . . . . . . . . . . . Slashing 534 | . . . . . . . . . . . . . . . . 534 . . Piercing 1100 | . . . . . . . . . . . 795 . 142 . 163 . . . Highest Corruption 21 | . . . 1 . . 8 8 8 8 . 1 1 1 . 3 1 13 21 Average Corruption 4 | . . . 1 . . 6 8 8 8 . 1 1 1 . 2 1 6 15 Corruption Purged 2 | . . . . . . . . . . . 1 . 1 . . . . . Corruption Blocked . | . . . . . . . . . . . . . . . . . . . Effects 81 | . . . 3 . . 27 5 5 3 . 5 . 1 . 6 1 6 19 Message Errors 18 | . . . . . . 3 2 2 . . 2 . 1 . 1 . 1 6 Matter Fused 15 | . . . . . . 7 . 2 . . 1 . . . 2 . 1 2 Heat Flow Errors 10 | . . . . . . 5 2 1 . . . . . . . . 1 1 Energy Discharges 12 | . . . 1 . . 3 . . 2 . 1 . . . 1 . 2 2 Parts Rejected 3 | . . . . . . . . . . . . . . . . . . 3 Parts Fused 1 | . . . . . . . . . . . . . . . 1 . . . Data Loss (minor) 9 | . . . . . . 6 1 . 1 . . . . . . . 1 . Data Loss (major) 3 | . . . . . . 2 . . . . . . . . . . . 1 Misfires 5 | . . . 1 . . . . . . . 1 . . . 1 . . 2 Alerts 2 | . . . 1 . . 1 . . . . . . . . . . . . Misdirections 1 | . . . . . . . . . . . . . . . . . . 1 Weapon Failures 2 | . . . . . . . . . . . . . . . . 1 . 1 Overload Shots 2 | . . . . . . . . . . . . . . . . 1 . 1 Overflow Damage 1878 | . . 4 47 13 93 1309 . . . . 49 . 119 . 5 171 . 68 Projectiles 125 | . . . 47 . 43 29 . . . . 1 . . . 5 . . . Explosions 135 | . . 4 . 13 50 . . . . . . . . . . . . 68 Melee 1618 | . . . . . . 1280 . . . . 48 . 119 . . 171 . . Knockbacks 50 | . . . . . 18 15 . . . . 7 . . . 5 5 . . Impact 13 | . . . . . . 13 . . . . . . . . . . . . Kinetic 34 | . . . . . 17 . . . . . 7 . . . 5 5 . . Secondary 3 | . . . . . 1 2 . . . . . . . . . . . . Self-Inflicted Damage 79 | . 2 . . . 77 . . . . . . . . . . . . . Shots 2 | . . . . . 2 . . . . . . . . . . . . . Rammed 4 | . 2 . . 1 1 . . . . . . . . . . . . . Targets Rammed 4 | . 2 . . 1 1 . . . . . . . . . . . . . Kicked . | . . . . . . . . . . . . . . . . . . . Crushed . | . . . . . . . . . . . . . . . . . . . Highest Temperature 343 | . 9 . 234 90 56 265 119 99 . . 343 . 24 . 291 116 249 283 Average Temperature 78 | . 2 . 60 30 18 80 55 35 . . 112 . 12 . 125 49 63 122 Received Heat Transfer 2226 | . 315 . 243 711 360 30 . . . . 234 . . . 144 36 . 153 Effects 2 | . . . 1 . . . . . . . 1 . . . . . . . Shutdowns 1 | . . . . . . . . . . . 1 . . . . . . . Energy Bleed 1 | . . . 1 . . . . . . . . . . . . . . . Siege Activations . | . . . . . . . . . . . . . . . . . . . Martial Activations . | . . . . . . . . . . . . . . . . . . . Shielding Activations . | . . . . . . . . . . . . . . . . . . . Robots Disrupted . | . . . . . . . . . . . . . . . . . . . Combat Hostiles . | . . . . . . . . . . . . . . . . . . . Robots Corrupted 14 | . . . . . . 14 . . . . . . . . . . . . Combat Hostiles . | . . . . . . . . . . . . . . . . . . . Parts Fried 21 | . . . 2 4 . 15 . . . . . . . . . . . . Impact Corruptions 47 | . . . . . . 47 . . . . . . . . . . . . Robots Melted 7 | . . . 3 4 . . . . . . . . . . . . . . Combat Hostiles 5 | . . . 2 3 . . . . . . . . . . . . . . Parts Melted 27 | . . . 9 16 . 2 . . . . . . . . . . . . Heat Transferred 11607 | . 148 . 3737 7500 . 222 . . . . . . . . . . . . Parts Sabotaged . | . . . . . . . . . . . . . . . . . . . Parts Stolen . | . . . . . . . . . . . . . . . . . . . Parts Stripped . | . . . . . . . . . . . . . . . . . . . Power Chain Reactions 1 | . . . . 1 . . . . . . . . . . . . . . Alert | -11 -10 -10 -9 -8 -8 -7 -7 -7 -7 -6 -6 -6 -6 -6 -5 -5 -5 -5 ------- Run | Yrd Mat Min Mat Mat Sto Fac Low Low Zio Pro Fac Low Low Dat Pro Fac Was Fac Maximum Alert Level 3 | . . . 2 2 2 1 . . . . . . . . . 3 1 2 Low Security (%) 67 | 100 100 100 62 47 1 93 . . . . 100 . . . . . 37 94 Level 1 13 | . . . 20 11 69 6 . . . . . . . . . . 62 4 Level 2 16 | . . . 17 41 29 . . . . . . . . . . 53 . 1 Level 3 3 | . . . . . . . . . . . . . . . . 46 . . Level 4 . | . . . . . . . . . . . . . . . . . . . Level 5 . | . . . . . . . . . . . . . . . . . . . High Security . | . . . . . . . . . . . . . . . . . . . Max Security . | . . . . . . . . . . . . . . . . . . . Peak Influence 931 | 10 115 92 503 574 471 213 . . . . 115 . . . . 931 236 431 Initial 916 | . . . . 132 224 197 . . . . . . . . . 916 236 123 Average 201 | 2 34 12 177 298 336 153 . . . . 49 . . . . 730 208 132 Influence Increases 6607 | 25 438 102 898 1341 613 549 20 . . . 555 . . . 250 1246 . 570 Destroy 0b10 Robot/C 2700 | . 220 60 560 760 280 120 20 . . . 220 . . . 180 100 . 180 Destroy 0b10 Robot/NC 575 | 25 55 15 95 75 65 125 . . . . 40 . . . 10 45 . 25 Destroy Leader 782 | . 46 10 160 216 108 74 . . . . 88 . . . 30 16 . 34 Allied During Kill 30 | . . . . . . . . . . . . . . . 30 . . . Successful Hack 195 | . 27 . 22 35 8 64 . . . . 28 . . . . 11 . . Select Force Hacks 20 | . . . . . . 20 . . . . . . . . . . . . Disable Machine 285 | . 30 . 30 15 90 45 . . . . 45 . . . . 15 . 15 Anti-Garrison Action 350 | . . . . 200 . . . . . . . . . . . . . 150 Destroy Structure 200 | . . 17 1 25 62 11 . . . . 14 . . . . 24 . 46 Advance Influence 900 | . . . . . . . . . . . . . . . . 900 . . Partial Spotted 135 | . . . . . . 60 . . . . 45 . . . . 15 . 15 Lose Combat Pursuer 435 | . 60 . 30 15 . 30 . . . . 75 . . . . 120 . 105 Influence Decreases 6184 | 25 438 102 583 1125 709 794 141 69 . . 446 109 . . 224 596 500 323 Entered New Map 1357 | . . . . 183 307 238 71 14 . . . 41 . . . 10 440 53 Time Decay 3854 | 25 395 102 393 562 392 506 70 55 . . 426 68 . . 214 356 60 230 Search Patrol Dispatched 200 | . . . . . . . . . . . . . . . . 200 . . Lost Part 320 | . 40 . 40 80 10 50 . . . . 20 . . . 10 30 . 40 Purge Threat 453 | . 3 . 150 300 . . . . . . . . . . . . . . Squads Dispatched 43 | . 1 . 1 7 1 14 . . . . 9 . . . . 5 . 5 Investigation 13 | . 1 . . 1 . 6 . . . . 3 . . . . 2 . . Extermination 8 | . . . . . . 5 . . . . 3 . . . . . . . Reinforcement 16 | . . . 1 4 1 3 . . . . 3 . . . . 2 . 2 Assault 3 | . . . . 1 . . . . . . . . . . . . . 2 Garrison 3 | . . . . 1 . . . . . . . . . . . 1 . 1 Intercept . | . . . . . . . . . . . . . . . . . . . Searches Triggered 2 | . . . . . . . . . . . . . . . . 2 . . Construction Impeded 2 | . . . . . 1 1 . . . . . . . . . . . . Haulers Reinforced 4 | . . . . . . . . . . . 1 . . . . 1 . 2 Active Scanning Responses . | . . . . . . . . . . . . . . . . . . . Cargo Convoy Interrupts . | . . . . . . . . . . . . . . . . . . . Stealth | -11 -10 -10 -9 -8 -8 -7 -7 -7 -7 -6 -6 -6 -6 -6 -5 -5 -5 -5 --------- Run | Yrd Mat Min Mat Mat Sto Fac Low Low Zio Pro Fac Low Low Dat Pro Fac Was Fac Distress Signals 15 | . . . 1 3 4 2 . . . . 3 . . . . 1 . 1 Communications Jammed 2 | . . . . . . . . . . . . . . . . . . 2 Distress Signals 2 | . . . . . . . . . . . . . . . . . . 2 Times Spotted 246 | . 23 3 39 58 20 22 1 . . 6 22 . . . 9 22 1 20 Peak Tracking Total 11 | . 6 3 5 6 4 4 1 1 . 7 5 . . . 2 11 1 6 Tactical Retreats 16 | . 2 . 1 1 . 2 . . . . 5 . . . . 3 . 2 Traps | -11 -10 -10 -9 -8 -8 -7 -7 -7 -7 -6 -6 -6 -6 -6 -5 -5 -5 -5 ------- Run | Yrd Mat Min Mat Mat Sto Fac Low Low Zio Pro Fac Low Low Dat Pro Fac Was Fac Traps Triggered 8 | . 2 . . . . 3 . . . . 1 . . . . 2 . . Indirectly . | . . . . . . . . . . . . . . . . . . . Trap Hack Attempts . | . . . . . . . . . . . . . . . . . . . Triggered . | . . . . . . . . . . . . . . . . . . . Disarmed . | . . . . . . . . . . . . . . . . . . . Reprogrammed . | . . . . . . . . . . . . . . . . . . . Reused . | . . . . . . . . . . . . . . . . . . . Traps Extracted . | . . . . . . . . . . . . . . . . . . . Installed . | . . . . . . . . . . . . . . . . . . . Triggered . | . . . . . . . . . . . . . . . . . . . Machines | -11 -10 -10 -9 -8 -8 -7 -7 -7 -7 -6 -6 -6 -6 -6 -5 -5 -5 -5 ---------- Run | Yrd Mat Min Mat Mat Sto Fac Low Low Zio Pro Fac Low Low Dat Pro Fac Was Fac Machines Disabled 21 | . 2 . 2 1 6 3 . 1 . . 3 . . . . 1 . 2 Max in Single Turn 1 | . 1 . 1 1 1 1 . 1 . . 1 . . . . 1 . 1 Garrison Access 7 | . . . . 1 . 2 . . . . 2 . . . . . . 2 Machines Repaired 1 | . . . . . . . . . . . 1 . . . . . . . Machines Dismantled . | . . . . . . . . . . . . . . . . . . . Machines Sabotaged . | . . . . . . . . . . . . . . . . . . . Overloaded Fab Kills . | . . . . . . . . . . . . . . . . . . . Hacking | -11 -10 -10 -9 -8 -8 -7 -7 -7 -7 -6 -6 -6 -6 -6 -5 -5 -5 -5 --------- Run | Yrd Mat Min Mat Mat Sto Fac Low Low Zio Pro Fac Low Low Dat Pro Fac Was Fac Machines Accessed 91 | . 9 1 9 10 4 21 1 1 . . 16 1 1 3 . 8 . 6 Terminals 51 | . 7 . 6 8 4 7 . . . . 10 1 1 . . 5 . 2 Fabricators 11 | . . . . . . 6 . . . . 2 . . . . 2 . 1 Repair Stations 2 | . . . 1 . . . . . . . . . . . . . . 1 Recycling Units 6 | . 2 . . . . 2 . . . . 1 . . . . . . 1 Scanalyzers 9 | . . . 2 1 . 4 . . . . 1 . . . . 1 . . Garrison Access 6 | . . . . 1 . 2 . . . . 2 . . . . . . 1 Total Hacks 266 | . 30 1 25 36 7 62 1 1 . . 40 1 1 27 . 22 . 12 Successful 150 | . 14 1 16 13 2 41 1 1 . . 19 1 1 27 . 9 . 4 Failed 113 | . 15 . 9 23 5 20 . . . . 21 . . . . 12 . 8 Catastrophic 17 | . 1 . 1 5 . 2 . . . . 6 . . . . . . 2 Database Lockouts 3 | . 1 . . . . 1 . . . . . . . . . 1 . . Manual 120 | . 24 . 15 24 5 19 . . . . 16 . . . . 14 . 3 Terminals 135 | . 26 . 16 30 7 18 . . . . 23 1 1 . . 11 . 2 Fabricators 46 | . . . . . . 23 . . . . 11 . . . . 8 . 4 Repair Stations 3 | . . . 2 . . . . . . . . . . . . . . 1 Recycling Units 10 | . 4 . . . . 3 . . . . 1 . . . . . . 2 Scanalyzers 27 | . . . 7 2 . 14 . . . . 1 . . . . 3 . . Garrison Access 15 | . . . . 4 . 4 . . . . 4 . . . . . . 3 Terminal Hacks 60 | . 5 1 4 7 2 5 1 1 . . 5 1 1 27 . . . . Record 7 | . . . . . . . . . . . . 1 1 5 . . . . Part Schematic 17 | . . . . 1 . . . . . . 3 . . 13 . . . . Robot Schematic 6 | . . . . . . . . . . . . . . 6 . . . . Robot Analysis 3 | . 1 . 2 . . . . . . . . . . . . . . . Prototype ID Bank 4 | . 1 . . . . . . . . . . . . 3 . . . . Open Door 4 | . . 1 . . 1 . 1 1 . . . . . . . . . . Branch Access Points 3 | . . . . 1 . 1 . . . . 1 . . . . . . . Terminal Index 1 | . . . . . . . . . . . 1 . . . . . . . Alert Level 1 | . . . . 1 . . . . . . . . . . . . . . Unreport Threat 4 | . 1 . 1 2 . . . . . . . . . . . . . . Locate Traps 2 | . . . 1 1 . . . . . . . . . . . . . . Recall Extermination 1 | . . . . . . 1 . . . . . . . . . . . . Hauler Manifests 4 | . 1 . . 1 1 1 . . . . . . . . . . . . Registered Components 2 | . 1 . . . . 1 . . . . . . . . . . . . Registered Prototypes 1 | . . . . . . 1 . . . . . . . . . . . . Fabricator Hacks 29 | . . . . . . 13 . . . . 8 . . . . 5 . 3 Network Status 4 | . . . . . . 1 . . . . 1 . . . . 1 . 1 Load Schematic 16 | . . . . . . 8 . . . . 4 . . . . 3 . 1 Build 9 | . . . . . . 4 . . . . 3 . . . . 1 . 1 Repair Station Hacks 2 | . . . 2 . . . . . . . . . . . . . . . Scan Component 1 | . . . 1 . . . . . . . . . . . . . . . Repair 1 | . . . 1 . . . . . . . . . . . . . . . Recycling Unit Hacks 2 | . . . . . . 2 . . . . . . . . . . . . Retrieve Components 2 | . . . . . . 2 . . . . . . . . . . . . Scanalyzer 18 | . . . 6 1 . 10 . . . . . . . . . 1 . . Insert Component 6 | . . . 2 . . 4 . . . . . . . . . . . . Analyze 8 | . . . 3 . . 5 . . . . . . . . . . . . Retrieve Study 4 | . . . 1 1 . 1 . . . . . . . . . 1 . . Garrison Access Hacks 5 | . . . . . . 2 . . . . 2 . . . . . . 1 Seal Access 5 | . . . . . . 2 . . . . 2 . . . . . . 1 Unauthorized Hacks 34 | . 9 . 4 5 . 9 . . . . 4 . . . . 3 . . Terminals 25 | . 9 . 4 4 . 3 . . . . 3 . . . . 2 . . Botnet 17 | . 3 . 3 3 . 3 . . . . 3 . . . . 2 . . Operators 3 | . 1 . 1 1 . . . . . . . . . . . . . . Skim 5 | . 5 . . . . . . . . . . . . . . . . . Fabricators 8 | . . . . . . 6 . . . . 1 . . . . 1 . . Download 1 | . . . . . . 1 . . . . . . . . . . . . Recompile 7 | . . . . . . 5 . . . . 1 . . . . 1 . . Repair Stations . | . . . . . . . . . . . . . . . . . . . Recycling Units . | . . . . . . . . . . . . . . . . . . . Scanalyzers . | . . . . . . . . . . . . . . . . . . . Garrison Access 1 | . . . . 1 . . . . . . . . . . . . . . Jam 1 | . . . . 1 . . . . . . . . . . . . . . Data Cores Recovered 3 | . 1 . . . . 2 . . . . . . . . . . . . Used . | . . . . . . . . . . . . . . . . . . . Hacking Detections 64 | . 9 . 8 10 3 15 . . . . 10 1 . . . 5 . 3 Full Trace Events 4 | . . . 1 . . . . . . . 2 . . . . 1 . . Feedback Events 3 | . . . 1 . . . . . . . 2 . . . . . . . Corruption 2 | . . . 1 . . . . . . . 1 . . . . . . . Hackware Fried 1 | . . . . . . . . . . . 1 . . . . . . . Feedback Blocked . | . . . . . . . . . . . . . . . . . . . Robot Schematics Acquired 10 | . . . . . . . . . 4 . . . . 6 . . . . Robots Built . | . . . . . . . . . . . . . . . . . . . Authchips . | . . . . . . . . . . . . . . . . . . . Time . | . . . . . . . . . . . . . . . . . . . Total Robot Build Rating . | . . . . . . . . . . . . . . . . . . . Part Schematics Acquired 38 | . . . 2 1 . 4 . . 15 . 3 . . 13 . . . . Parts Built 15 | . . . . . . 6 . . . . 6 . . . . 1 . 2 Authchips 9 | . . . . . . 4 . . . . 3 . . . . 1 . 1 Time 648 | . . . . . . 232 . . . . 237 . . . . 84 . 95 Total Part Build Rating 80 | . . . . . . 34 . . . . 30 . . . . 6 . 10 Part Studies Acquired 3 | . . . 1 1 . . . . . . . . . . . 1 . . Parts Repaired 1 | . . . 1 . . . . . . . . . . . . . . . Time 64 | . . . 64 . . . . . . . . . . . . . . . Parts Recycled . | . . . . . . . . . . . . . . . . . . . Recycled Matter . | . . . . . . . . . . . . . . . . . . . Retrieved Matter . | . . . . . . . . . . . . . . . . . . . Retrieved Components 4 | . . . . . . 4 . . . . . . . . . . . . Parts Scanalyzed 5 | . . . 2 . . 3 . . . . . . . . . . . . Part Schematics Acquired 5 | . . . 2 . . 3 . . . . . . . . . . . . Parts Damaged 1 | . . . 1 . . . . . . . . . . . . . . . Bothacking | -11 -10 -10 -9 -8 -8 -7 -7 -7 -7 -6 -6 -6 -6 -6 -5 -5 -5 -5 ------------ Run | Yrd Mat Min Mat Mat Sto Fac Low Low Zio Pro Fac Low Low Dat Pro Fac Was Fac Used RIF Installer . | . . . . . . . . . . . . . . . . . . . Robots Hacked . | . . . . . . . . . . . . . . . . . . . Non-combat . | . . . . . . . . . . . . . . . . . . . Combat . | . . . . . . . . . . . . . . . . . . . Robot Hacks Applied . | . . . . . . . . . . . . . . . . . . . Relay Couplers Released 4 | . . . . 3 . . . . . . . . . . . . . 1 Machine Destruction 4 | . . . . 3 . . . . . . . . . . . . . 1 Fabnet Peak Effective % . | . . . . . . . . . . . . . . . . . . . Robots Rewired . | . . . . . . . . . . . . . . . . . . . Allies Hacked . | . . . . . . . . . . . . . . . . . . . Hacks Repelled . | . . . . . . . . . . . . . . . . . . . Allies | -11 -10 -10 -9 -8 -8 -7 -7 -7 -7 -6 -6 -6 -6 -6 -5 -5 -5 -5 -------- Run | Yrd Mat Min Mat Mat Sto Fac Low Low Zio Pro Fac Low Low Dat Pro Fac Was Fac Total Allies 1 | . . . . . . . . . . . . . . . 1 . . . Largest Group 1 | . . . . . . . . . . . . . . . 1 . . . Highest-Rated Group 96 | . . . . . . . . . . . . . . . 96 . . . Highest-Rated Ally 96 | . . . . . . . . . . . . . . . 96 . . . Total Orders . | . . . . . . . . . . . . . . . . . . . Ally Attacks 24 | . . . . . . . . . . . . . . . 24 . . . Total Damage 784 | . . . . . . . . . . . . . . . 784 . . . Kills 3 | . . . . . . . . . . . . . . . 3 . . . Allies Corrupted . | . . . . . . . . . . . . . . . . . . . Allies Melted . | . . . . . . . . . . . . . . . . . . . Intel | -11 -10 -10 -9 -8 -8 -7 -7 -7 -7 -6 -6 -6 -6 -6 -5 -5 -5 -5 ------- Run | Yrd Mat Min Mat Mat Sto Fac Low Low Zio Pro Fac Low Low Dat Pro Fac Was Fac Active Infowar (turns) 11699 | 15 1150 887 1784 1297 921 1250 140 214 319 102 1100 181 229 44 641 816 129 480 Optics 3619 | . . . . . . . . . . . 1099 181 229 44 641 816 129 480 Sensors 6602 | . . . . 182 921 1250 140 214 319 102 1080 181 215 44 552 816 129 457 Seismic 4951 | 15 1150 887 1784 1115 . . . . . . . . . . . . . . Jamming 18 | . . . . . . . . . . . . . . . . . . 18 Robot Analysis Total 3 | . 1 . 2 . . . . . . . . . . . . . . . Derelict Logs Recovered 5 | . . 1 . . . . . . 1 1 . 1 . . 1 . . . Drone Launches . | . . . . . . . . . . . . . . . . . . . Drone Recoveries . | . . . . . . . . . . . . . . . . . . . Exploration | -11 -10 -10 -9 -8 -8 -7 -7 -7 -7 -6 -6 -6 -6 -6 -5 -5 -5 -5 ------------- Run | Yrd Mat Min Mat Mat Sto Fac Low Low Zio Pro Fac Low Low Dat Pro Fac Was Fac Turns Passed 12493 | 129 1282 891 1824 1677 921 1372 140 214 321 102 1100 181 229 44 641 816 129 480 Spaces Moved 12222 | 65 672 579 881 803 400 1886 324 486 784 258 1700 329 372 81 666 1110 188 638 Core 7 | 6 . . . . . . . . . . . . . . . 1 . . Treads 256 | 21 55 . 21 85 74 . . . . . . . . . . . . . Legs . | . . . . . . . . . . . . . . . . . . . Wheels 3171 | 38 617 579 860 718 326 33 . . . . . . . . . . . . Hover 8788 | . . . . . . 1853 324 486 784 258 1700 329 372 81 666 1109 188 638 Flight . | . . . . . . . . . . . . . . . . . . . Fastest Speed 34 | 50 95 145 135 105 140 38 38 38 38 38 34 54 54 54 54 47 47 44 Average Speed 72 | 114 143 145 145 135 163 40 38 40 38 38 41 54 54 54 70 50 47 46 Slowest Speed 1000 | 160 160 145 240 235 237 155 38 98 38 38 120 54 54 54 147 1000 47 109 Overloaded Moves . | . . . . . . . . . . . . . . . . . . . Propulsion Burnouts . | . . . . . . . . . . . . . . . . . . . Robots Hopped . | . . . . . . . . . . . . . . . . . . . Potential Cave-ins 3 | . . . . . . . . . . . . . . . . 3 . . Cave-ins Triggered . | . . . . . . . . . . . . . . . . . . . Exploration Rate (%) 58 | 4 95 91 67 74 52 42 55 67 80 38 44 52 60 74 82 26 96 14 Regions Visited 18 Branch Regions 10 Pre-discovered Areas 4 | . 2 1 . . . . . . 1 . . . . . . . . . Known Exits Taken 14 | . . 1 1 1 1 1 1 1 1 1 1 1 1 1 1 . . . Unknown Exits Taken 2 | 1 1 . . . . . . . . . . . . . . . . . Scrap Searched 18 | . . 1 . . . . 2 2 2 4 . 2 3 . 2 . . . Spaces Dug 40 | . . . . . . 10 . 1 . . 10 . . . . 14 . 5 Terrain Destroyed 175 | . . 20 . 34 59 10 . 1 . . 11 . . . 2 15 . 23 Melee 36 | . . . . . . 10 . 1 . . 10 . . . . 10 . 5 Projectile 36 | . . . . 4 24 . . . . . 1 . . . 2 5 . . AOE 103 | . . 20 . 30 35 . . . . . . . . . . . . 18 Terrain Rammed . | . . . . . . . . . . . . . . . . . . . Walls Destroyed . | . . . . . . . . . . . . . . . . . . . Machines Disabled . | . . . . . . . . . . . . . . . . . . . Actions | -11 -10 -10 -9 -8 -8 -7 -7 -7 -7 -6 -6 -6 -6 -6 -5 -5 -5 -5 --------- Run | Yrd Mat Min Mat Mat Sto Fac Low Low Zio Pro Fac Low Low Dat Pro Fac Was Fac Total 14574 | 93 879 621 1226 1115 576 2344 340 495 805 261 1973 331 395 80 762 1299 208 771 Wait 883 | . 89 18 135 44 55 253 10 . . 2 89 1 9 . 36 86 3 53 Move 12205 | 64 671 578 880 802 399 1885 323 485 783 257 1699 328 371 80 665 1110 187 638 Hop . | . . . . . . . . . . . . . . . . . . . Pick Up 193 | 8 29 6 28 24 22 26 1 . 3 1 16 1 4 . 4 13 2 5 Fast Attach 88 | 7 1 2 6 15 8 8 1 . 7 . 11 . . . 3 7 1 11 Attach 86 | . 4 . 6 8 . 19 1 1 . . 21 . 2 . 12 5 2 5 Detach 34 | . 1 . 2 1 . 8 1 1 . . 12 . . . 2 4 . 2 Swap 175 | 3 8 2 29 34 7 29 . . 1 . 26 1 2 . 1 15 1 16 Drop 220 | . 16 7 37 42 30 28 2 . 10 1 19 . 4 . 2 9 2 11 Fire 522 | 11 58 8 103 144 54 25 1 6 . . 31 . 1 . 22 26 10 22 Melee 139 | . . . . . . 63 . 2 1 . 29 . 2 . 15 21 . 6 Ram 1 | . 1 . . . . . . . . . . . . . . . . . Kick . | . . . . . . . . . . . . . . . . . . . Crush 3 | . 1 . . 1 1 . . . . . . . . . . . . . Escape Stasis 13 | . . . . . . . . . . . 13 . . . . . . . Rewire . | . . . . . . . . . . . . . . . . . . . Trap . | . . . . . . . . . . . . . . . . . . . Miscellaneous 12 | . . . . . . . . . . . 7 . . . . 3 . 2 Route ------- -11/Scrapyard -10/Materials (discovered 5 exits: *Mat x3 / *Min / Sub) -10/Mines (discovered 3 exits: *Mat x2 / *Sub) -9/Materials (discovered 5 exits: *Mat x3 / *Min x2) -8/Materials (discovered 3 exits: *Fac x2 / *Sto) -8/Storage -7/Factory (discovered 2 exits: *Low x2) -7/Lower Caves -7/Lower Caves -7/Zion -6/Proximity Caves -6/Factory (discovered 4 exits: *Fac x2 / *Low x2) -6/Lower Caves -6/Lower Caves -6/Data Miner -5/Proximity Caves -5/Factory (discovered 2 exits: *Fac / Upp) -5/Waste -5/Factory History --------- Turn | Location | Event 46 | -11/Scrapyard | Discovered new exit (range 12) 130 | -11/Scrapyard | Entered Materials 315 | -10/Materials | Build established: Mutant 364 | -10/Materials | Discovered new exit (range 8) 456 | -10/Materials | Discovered new exit (range 14) 692 | -10/Materials | Identified exit to Materials 823 | -10/Materials | Learned 2 Storage zone layouts 874 | -10/Materials | Learned location of 1 exit from Recycling 916 | -10/Materials | Identified exit to Subcaves 916 | -10/Materials | Learned location of 2 exits from Materials 948 | -10/Materials | Learned Storage trap positions 1006 | -10/Materials | Learned location of 1 exit from Recycling 1109 | -10/Materials | Learned location of Storage (-8) 1335 | -10/Materials | Central database locked down 1383 | -10/Materials | Build established: Scavenger-Mutant 1412 | -10/Materials | Entered Mines 1423 | -10/Mines | Met a Derelict bent on vengeance 1835 | -10/Mines | Found the Drone Emporium 1843 | -10/Mines | Found Prototype Device 1843 | -10/Mines | Identified Thief Drone Bay 2297 | -10/Mines | Discovered exit to Subcaves (range 5) 2303 | -10/Mines | Entered Materials 2303 | -9/Materials | Evolved 2 slots: Propulsion x1, Utility x1 2304 | -9/Materials | Identified exit to Materials 2304 | -9/Materials | Identified exit to Mines 2449 | -9/Materials | Lost 3 parts (2u1w) 3989 | -9/Materials | Repaired Broken Imp. Flight Unit? 4127 | -9/Materials | Entered another Materials area 4127 | -8/Materials | Evolved 2 slots: Propulsion x1, Utility x1 4814 | -8/Materials | Garrison activated, responded to threat 5035 | -8/Materials | Discovered new exit (range 16) 5133 | -8/Materials | Identified exit to Factory 5258 | -8/Materials | Identified exit to Storage 5327 | -8/Materials | First assault squad dispatched 5433 | -8/Materials | Lost 3 parts (1n1u1w) 5536 | -8/Materials | Discovered exit to Factory (range 15) 5614 | -8/Materials | Lost 5 parts (1n2u2w) 5710 | -8/Materials | Build established: Mutant 5804 | -8/Materials | Entered Storage 5806 | -8/Storage | Loaded intel: 11 trap records 6043 | -8/Storage | Core integrity fell below 50% 6605 | -8/Storage | Discovered exit to Factory (range 16) 6725 | -8/Storage | Entered Factory 6725 | -7/Factory | Evolved 2 slots: Power x1, Utility x1 7179 | -7/Factory | Build established: Hacker-Mutant 7446 | -7/Factory | Fabricated Hyp. Mass Driver? 7665 | -7/Factory | Fabricated Aerolev Unit (x1) 7725 | -7/Factory | Fabricated Hyp. Mass Driver? 7822 | -7/Factory | Identified exit to Lower Caves 7859 | -7/Factory | Central database locked down 7859 | -7/Factory | Watched by a mysterious "MATRIX" hacker 8074 | -7/Factory | Fabricated Aerolev Unit (x1) 8097 | -7/Factory | Entered Lower Caves 8152 | -7/Lower Caves | Encountered a Warlord checkpoint 8154 | -7/Lower Caves | Attracted the attention of an 0b10 checkpoint 8205 | -7/Lower Caves | Discovered new exit (range 10) 8208 | -7/Lower Caves | Identified exit to Lower Caves 8237 | -7/Lower Caves | Entered another Lower Caves area 8360 | -7/Lower Caves | Discovered new exit (range 12) 8364 | -7/Lower Caves | Identified exit to Zion 8451 | -7/Lower Caves | Entered Zion 8473 | -7/Zion | Received a hallucinogenic algorithm 8481 | -7/Zion | Given A8's code to call for help 8486 | -7/Zion | Discovered new exit (range 12) 8513 | -7/Zion | System corruption cleaned by Quarantine Array 8543 | -7/Zion | Given the Hacking Drone Bay 8572 | -7/Zion | Found CR-A16's Pointy Stick 8587 | -7/Zion | Learned location of Warlord (-4) 8617 | -7/Zion | Found Prototype Launcher 8617 | -7/Zion | Identified Rocket Array 8686 | -7/Zion | Learned 8 Factory zone layouts 8772 | -7/Zion | Identified exit to Proximity Caves 8772 | -7/Zion | Entered Proximity Caves 8858 | -6/Proximity Caves | Discovered new exit (range 15) 8873 | -6/Proximity Caves | Identified exit to Factory 8874 | -6/Proximity Caves | Entered Factory 8874 | -6/Factory | Evolved 2 slots: Propulsion x1, Utility x1 8875 | -6/Factory | Identified exit to Factory 8988 | -6/Factory | Hacking Suite fried by hacking feedback 9246 | -6/Factory | Build established: Scout 9308 | -6/Factory | Identified exit to Lower Caves 9446 | -6/Factory | Discovered exit to Factory (range 14) 9719 | -6/Factory | Fabricated Weapon Mount (x2) 9774 | -6/Factory | Fabricated Cmb. Airjet (x2) 9832 | -6/Factory | Fabricated Cmb. Airjet (x2) 9974 | -6/Factory | Entered Lower Caves 10040 | -6/Lower Caves | Encountered a Warlord checkpoint 10045 | -6/Lower Caves | Learned Factory stockpile data 10122 | -6/Lower Caves | Discovered new exit (range 9) 10135 | -6/Lower Caves | Identified exit to Lower Caves 10155 | -6/Lower Caves | Entered another Lower Caves area 10275 | -6/Lower Caves | Build established: Hacker-Scout 10355 | -6/Lower Caves | Discovered new exit (range 14) 10363 | -6/Lower Caves | Identified exit to Data Miner 10384 | -6/Lower Caves | Entered Data Miner 10384 | -6/Data Miner | Discovered new exit (range 6) 10392 | -6/Data Miner | Met Data Miner 10414 | -6/Data Miner | Received God Mode back door access code from Data Miner 10427 | -6/Data Miner | Identified exit to Proximity Caves 10428 | -6/Data Miner | Entered Proximity Caves 10433 | -5/Proximity Caves | Spotter reported a threat 10438 | -5/Proximity Caves | Spotter reported a threat 10469 | -5/Proximity Caves | Spotted B-75 Beast 10543 | -5/Proximity Caves | Core integrity fell below 50% 10553 | -5/Proximity Caves | Escorted by Enhanced Grunt 10576 | -5/Proximity Caves | Lost 7 parts (1p3n2u1w) 10594 | -5/Proximity Caves | Allies destroyed B-75 Beast 10598 | -5/Proximity Caves | Spotter reported a threat 10617 | -5/Proximity Caves | Lost 3 parts (1u2w) 10631 | -5/Proximity Caves | Spotter reported a threat 10651 | -5/Proximity Caves | Spotter reported a threat 10684 | -5/Proximity Caves | Spotter reported a threat 11034 | -5/Proximity Caves | Learned Factory stockpile data 11051 | -5/Proximity Caves | Discovered exit to Factory (range 13) 11069 | -5/Proximity Caves | Entered Factory 11069 | -5/Factory | Evolved 2 slots: Propulsion x1, Utility x1 11070 | -5/Factory | Identified exit to Upper Caves 11137 | -5/Factory | Build established: Machinist-Scout 11219 | -5/Factory | Central database locked down 11246 | -5/Factory | Discovered new exit (range 17) 11255 | -5/Factory | Identified exit to Factory 11369 | -5/Factory | Search patrols dispatched 11398 | -5/Factory | Fabricated Cld. Gravmag System (x1) 11502 | -5/Factory | Spotted B-75 Beast 11669 | -5/Factory | Search patrols dispatched 11731 | -5/Factory | Garrison activated, responded to threat 11885 | -5/Factory | Sucked down chute 11885 | -5/Factory | Entered Waste 11889 | -5/Waste | Spotted C-40 Crusher 11896 | -5/Waste | Destroyed C-40 Crusher 11900 | -5/Waste | EMP discharged 11908 | -5/Waste | Found Prototype Device 11927 | -5/Waste | Spotted C-40 Crusher 11930 | -5/Waste | Destroyed C-40 Crusher 11934 | -5/Waste | Spotted C-40 Crusher 11937 | -5/Waste | Destroyed C-40 Crusher 11940 | -5/Waste | Destroyed C-40 Crusher 11947 | -5/Waste | Spotted C-40 Crusher 11961 | -5/Waste | Destroyed C-40 Crusher 11983 | -5/Waste | Identified Adv. Kinecellerator 12000 | -5/Waste | EMP discharged 12000 | -5/Waste | System corruption reached 10% 12008 | -5/Waste | Discovered new exit (range 13) 12014 | -5/Waste | Identified exit to Factory 12014 | -5/Waste | Entered Factory 12493 | -5/Factory | Fabricated Cmb. Airjet? 12494 | -5/Factory | Self-destructed Last Messages --------------- 12486_ Hyp. Mass Driver+ destroyed. 12488_ ALERT: Cargo convoy en route, clear transfer corridor. 12488_ ALERT: Garrison Access compromised, dispatching multiple assault carriers. 12488_ Garrison Access disabled. 12488_ Relay Coupler [Heavy] tumbles out of Garrison Access. 12488_ Penetrated by Slug. 12488_ U-05 Engineer lays Concrete. 12490_ Slug penetrates Wall. 12490_ U-05 Engineer builds a Wall. 12490_ U-05 Engineer lays Concrete. 12491_ Penetrated by Slug. 12491_ Destroyed Phase Shifter. 12491_ Megafabricator disabled. 12492_ U-05 Engineer lays Concrete. 12493_ >> FABRICATOR: Completed Cmb. Airjet? 12493_ Slug penetrates Wall. 12493_ U-05 Engineer lays Concrete. Map ----- +----------------------------------------------------+ | ?????????????????# ????????????????? ????????????? | | ???????#+######### #??[????????????+#######??????? | | ???????# """""" # #?????????????? ???? | | ???????# """""" # #????????????? ???? | | ???????# """""" # ############## """ == ???? | | ???????# """""" # "T = "???!?? | | ???????# + """ """ ??? | | #??????# # """ ??? | | ?????# ! ! # #### # | | ?????# # #???????" """ """ | | #####+######### #???????????" "?????? | | # !# ######### ######+####????????????????? | | + # + #????????????????? | | # # ##### +????????????????? | | ## #???# #????????????????? | | ??# ## #???# #????????????????? | | ??#"" ##s###############????????????????? | | #???#" " # #????????????????????? | | ????#"F " # w #????????????????????? | | #####"" " # #????????????????????? | | # " # #????????????????????? | | # " # #????????????????????? | | # " # #????????????????????? | | # " # #????????????????????? | | "" # " # #????????????????????? | | + " @ #????????????????????? | | "" # s #????????????????????? | | # = #????????????????????? | | "" # % [% #????????????????????? | | # # #####????????????????????? | | "" # % ?????????????????????????? | | # u *! !?????????????????????????? | | ##### ""G" ?????????????????????????? | | ????# " " h ?????????????????????????? | | ????# " "Y ????????????????????????? | | ????######## #????????????????????????? | | ???????????# #????????????????????????? | | ???????????# """" " #????????????????????????? | | ?????????? """""" #????????????????????????? | | ????? """""" #????????????????????????? | | ???????? """""" #????????????????????????? | | ????????? ???? ""???? #????????????????????????? | | ???????? ????? ""???? #????????????????????????? | | ????### ??????"????? #????????????????????????? | | ??? ??????????? +????????????????????????? | | ?? ??????????? #????????????????????????? | | ? ??????????? #????????????????????????? | | ?????????????? #????????????????????????? | | ???????????????????????????????????????????? | | #?????????????????????????????????????????????? | +----------------------------------------------------+ Best States ------------- Heat Dissipation 64 Energy Generation 28 Energy Capacity 340 Matter Stores 300 Matter Capacity 300 Sight Range 22 Robot Scan Range 16 Terrain Scan Density 10 Jamming Range 16 Additional Mass Support 9 Armor Coverage 225 Evasion (%) 58 Targeting Accuracy 20 Core Analysis 6 Recoil Reduction 3 Matter Filtering 30 Offensive Hacking 22 Defensive Hacking 10 Authchip Count 3 Item Schematics ----------------- Imp. Flight Unit | -9/Materials | Scanalyzed Imp. EM Shotgun | -9/Materials | Scanalyzed Hacking Suite | -8/Materials | Hacked Aerolev Unit | -7/Factory | Scanalyzed Graphene Brace | -7/Factory | Scanalyzed Hyp. Mass Driver | -7/Factory | Downloaded Imp. Light Armor Plating | -7/Factory | Scanalyzed Powered Hammer | -7/Zion | Archive Imp. System Shield | -7/Zion | Archive Kinecellerator | -7/Zion | Archive Coil Gun | -7/Zion | Archive Weapon Cycler | -7/Zion | Archive Adv. Heat Sink | -7/Zion | Archive Lightning Gun | -7/Zion | Archive Imp. Coolant Injector | -7/Zion | Archive Lyr. Heavy Armor Plating | -7/Zion | Archive Imp. Titanium Leg | -7/Zion | Archive Phase Shifter | -7/Zion | Archive Magnetic Acceleration Cannon | -7/Zion | Archive Imp. Melee Analysis Suite | -7/Zion | Archive Gatling Laser | -7/Zion | Archive Phase Cannon | -7/Zion | Archive Weapon Mount | -6/Factory | Hacked Cmb. Airjet | -6/Factory | Hacked Cld. Airjet | -6/Factory | Hacked Combat Drone Bay | -6/Data Miner | Free Lgt. Regenerative Plating | -6/Data Miner | Free Cld. Gravmag System | -6/Data Miner | Free Imp. Matter Compressor | -6/Data Miner | Free Smartbomb Launcher | -6/Data Miner | Free Impulse Thruster | -6/Data Miner | Free Adv. Coolant Injector | -6/Data Miner | Free Tesla Rifle | -6/Data Miner | Free Micro-nuke Launcher | -6/Data Miner | Free Hvy. Gauss Cannon | -6/Data Miner | Free Imp. Armor Integrity Analyzer | -6/Data Miner | Free Impulse Thruster Array | -6/Data Miner | Free Adv. Force Field | -6/Data Miner | Free Robot Schematics ------------------ G-47 Trooper | -7/Zion | Archive R-06 Scavenger | -7/Zion | Archive S-27 Virus | -7/Zion | Archive X-82 Rainmaker | -7/Zion | Archive L-41 Fighter | -6/Data Miner | Free E-15 Imp | -6/Data Miner | Free G-50 Soldier | -6/Data Miner | Free B-48 Gladiator | -6/Data Miner | Free R-10 Processor | -6/Data Miner | Free L-61 Swordsman | -6/Data Miner | Free Fabricated ------------ Hyp. Mass Driver | x2 | -7/Factory | Authchip Aerolev Unit | x1 | -7/Factory | Authchip Hyp. Mass Driver | x2 | -7/Factory | Authchip Aerolev Unit | x1 | -7/Factory | Authchip Weapon Mount | x2 | -6/Factory | Authchip Cmb. Airjet | x2 | -6/Factory | Authchip Cmb. Airjet | x2 | -6/Factory | Authchip Cld. Gravmag System | x1 | -5/Factory | Authchip Cmb. Airjet | x2 | -5/Factory | Authchip Repaired ---------- Imp. Flight Unit | 99% | -9/Materials | Broken Studied --------- Com. Wheel | -9/Materials | Hacked Arm. Wheel | -8/Materials | Hacked Hyp. Mass Driver | -5/Factory | Hacked Alien Tech Used ----------------- None Achievements -------------- Fixer-Upper Challenges ------------ None Game ------ Seed ExpertCannonTerminator Manual? 0 Play Time 03:07:07 Cumulative 438.4 hours Start 2026.08.22 @ 23:24:00 End 2026.08.23 @ 20:43:08 Sessions 5 Manual Loads 0 Difficulty Rogue Special Mode None Game No. 258 Rogue 233 Adventurer 25 Explorer 0 Win Type - Total 14 Types 9/0/3/1/0/0/0/1/0/0 Lore% 86 Gallery% 70 Achievement% 65 Wizard Run 0 Options --------- Layout 1 ASCII 0 Keyboard 0 Movement Mouse Keybinds 0 Fullscreen 2 Font 24/Smallcaps Map View 50x40 Zoom Use 0% Tactical HUD 1 Map Filters NONE Filters NONE Steam 1 RUN: 1c17cd7b-2e13-4f20-ab10-818239d05514